[Event "-chT Youth Countries 2019"]
[Site "Wuerzburg"]
[Date "2019.10.04"]
[Round "5.7"]
[White "Bungarten, Jona"]
[Black "Schnabel, Luise"]
[Result "1/2-1/2"]
[ECO "B03"]
[WhiteElo "1669"]
[BlackElo "1900"]
[Annotator "NA"]
[PlyCount "47"]
[EventDate "2019.10.02"]
[EventType "team-tourn"]
[EventRounds "7"]
[EventCountry "GER"]
[SourceTitle "playchess.com"]
[Source "ChessBase"]
[SourceQuality "1"]
[WhiteTeam "Nordrhein-Westfalen"]
[BlackTeam "Berlin"]
[TimeControl "40/5400+30:1800+30"]

1. e4 {[%emt 0:00:00]} Nf6 {[%emt 0:00:00]} 2. e5 {[%emt 0:00:00]} Nd5 {[%emt 0:00:00]} 3. d4 {[%emt 0:00:00]} d6 {[%emt 0:00:09]} 4. Bc4 {[%emt 0:00:00]} e6 {[%emt 0:02:36]} 5. Nf3 {[%emt 0:01:35]} Nb6 {[%emt 0:04:27]} 6. Bb3 {[%emt 0:00:12]} Nc6 {[%emt 0:03:26]} 7. O-O {[%emt 0:01:34]} Be7 {[%emt 0:02:18]} 8. Nc3 {[%emt 0:02:27]} O-O {[%emt 0:05:17]} 9. Qe2 {[%emt 0:02:01]} Bd7 {[%emt 0:04:25]} 10. Ne4 {[%emt 0:01:24]} Na5 {[%emt 0:07:17]} 11. Bf4 {[%emt 0:03:17]} Bc6 {[%emt 0:04:18]} 12. exd6 {[%emt 0:05:07]} cxd6 {[%emt 0:01:25]} 13. Rad1 {[%emt 0:00:59]} Nxb3 {[%emt 0:06:10]} 14. axb3 {[%emt 0:00:09]} Nd5 {[%emt 0:01:18]} 15. Bg3 {[%emt 0:00:52]} Nf6 {[%emt 0:04:00]} 16. Nfd2 {[%emt 0:03:37]} Rc8 {[%emt 0:06:04]} 17. c4 {[%emt 0:02:04]} d5 {[%emt 0:11:38]} 18. Nc3 {[%emt 0:01:23]} dxc4 {[%emt 0:02:44]} 19. Nxc4 {[%emt 0:00:18]} a6 {[%emt 0:05:24]} 20. Rfe1 {[%emt 0:01:34]} Bd5 {[%emt 0:03:22]} 21. f3 {[%emt 0:04:54]} b5 {[%emt 0:04:34]} 22. Nxd5 {[%emt 0:07:00]} Nxd5 {[%emt 0:00:53]} 23. Ne5 {[%emt 0:02:05]} Nb4 {[%emt 0:04:44]} 24. Rd2 {[%emt 0:01:56] normal} 1/2-1/2

[Event "-chT Youth Countries 2019"]
[Site "Wuerzburg"]
[Date "2019.10.04"]
[Round "5.7"]
[White "Woerz, Ann-Sophie"]
[Black "Sperling, Niclas"]
[Result "0-1"]
[ECO "B24"]
[WhiteElo "1500"]
[BlackElo "1656"]
[Annotator "NA"]
[PlyCount "66"]
[EventDate "2019.10.02"]
[EventType "team-tourn"]
[EventRounds "7"]
[EventCountry "GER"]
[SourceTitle "playchess.com"]
[Source "ChessBase"]
[SourceQuality "1"]
[WhiteTeam "Württemberg"]
[BlackTeam "Brandenburg/Berlin"]
[TimeControl "40/5400+30:1800+30"]

1. e4 {[%emt 0:00:00]} c5 {[%emt 0:00:00]} 2. Nc3 {[%emt 0:00:00]} Nc6 {[%emt 0:00:09]} 3. Nf3 {[%emt 0:02:40]} g6 {[%emt 0:00:38]} 4. Bb5 {[%emt 0:00:48]} Bg7 {[%emt 0:02:27]} 5. Bxc6 {[%emt 0:01:34]} bxc6 {[%emt 0:00:44]} 6. d4 {[%emt 0:00:53]} cxd4 {[%emt 0:00:23]} 7. Nxd4 {[%emt 0:00:05]} c5 {[%emt 0:00:17]} 8. Nde2 {[%emt 0:02:14]} d6 {[%emt 0:03:36]} 9. O-O {[%emt 0:01:56]} Nf6 {[%emt 0:01:18]} 10. f4 {[%emt 0:02:18]} O-O {[%emt 0:01:11]} 11. b3 {[%emt 0:02:19]} Nxe4 {[%emt 0:07:38]} 12. Bb2 {[%emt 0:04:07]} Bg4 {[%emt 0:07:48]} 13. Nxe4 {[%emt 0:04:23]} Bxb2 {[%emt 0:00:12]} 14. Rb1 {[%emt 0:00:01]} Bg7 {[%emt 0:00:47]} 15. h3 {[%emt 0:01:13]} Bd7 {[%emt 0:02:16]} 16. Qd2 {[%emt 0:04:30]} Bc6 {[%emt 0:00:32]} 17. N2g3 {[%emt 0:04:05]} Qb6 {[%emt 0:02:49]} 18. c4 {[%emt 0:05:30]} Qb7 {[%emt 0:00:19]} 19. Rbe1 {[%emt 0:04:37]} a5 {[%emt 0:02:17]} 20. f5 {[%emt 0:13:11]} a4 {[%emt 0:02:52]} 21. bxa4 {[%emt 0:01:10]} Bd4+ {[%emt 0:04:47]} 22. Kh1 {[%emt 0:03:01]} Rxa4 {[%emt 0:12:34]} 23. fxg6 {[%emt 0:07:43]} fxg6 {[%emt 0:01:29]} 24. Rxf8+ {[%emt 0:01:37]} Kxf8 {[%emt 0:00:24]} 25. Qh6+ {[%emt 0:01:53]} Kg8 {[%emt 0:07:45]} 26. Rf1 {[%emt 0:06:59]} Bg7 {[%emt 0:01:06]} 27. Qf4 {[%emt 0:04:18]} Ra8 {[%emt 0:12:01]} 28. Qf7+ {[%emt 0:11:16]} Kh8 {[%emt 0:00:16]} 29. Qe6 {[%emt 0:02:36]} Qd7 {[%emt 0:07:04]} 30. Qxd7 {[%emt 0:02:05]} Bxd7 {[%emt 0:00:11]} 31. Rf7 {[%emt 0:00:46]} Re8 {[%emt 0:00:46]} 32. Nxd6 {[%emt 0:01:08]} Be6 {[%emt 0:02:45]} 33. Rxg7 {[%emt 0:00:44]} exd6 {[%emt 0:00:02] normal} 0-1

[Event "-chT Youth Countries 2019"]
[Site "Wuerzburg"]
[Date "2019.10.04"]
[Round "5.7"]
[White "Henninger, Claire"]
[Black "Wucherer, Sophie"]
[Result "0-1"]
[ECO "C02"]
[WhiteElo "1471"]
[BlackElo "1531"]
[Annotator "NA"]
[PlyCount "114"]
[EventDate "2019.10.02"]
[EventType "team-tourn"]
[EventRounds "7"]
[EventCountry "GER"]
[SourceTitle "playchess.com"]
[Source "ChessBase"]
[SourceQuality "1"]
[WhiteTeam "Baden 2"]
[BlackTeam "Mecklenburg-Vorpommern"]
[TimeControl "40/5400+30:1800+30"]

1. e4 {[%emt 0:00:00]} e6 {[%emt 0:00:00]} 2. d4 {[%emt 0:00:00]} d5 {[%emt 0:00:00]} 3. e5 {[%emt 0:00:00]} c5 {[%emt 0:00:00]} 4. c3 {[%emt 0:00:06]} Nc6 {[%emt 0:00:04]} 5. Nf3 {[%emt 0:00:12]} Bd7 {[%emt 0:00:28]} 6. a3 {[%emt 0:04:31]} a6 {[%emt 0:06:48]} 7. b4 {[%emt 0:05:12]} cxd4 {[%emt 0:00:08]} 8. cxd4 {[%emt 0:00:30]} b5 {[%emt 0:01:15]} 9. Bb2 {[%emt 0:01:11]} f6 {[%emt 0:02:12]} 10. g3 {[%emt 0:03:38]} fxe5 {[%emt 0:01:26]} 11. Nxe5 {[%emt 0:01:16]} Nxe5 {[%emt 0:04:26]} 12. dxe5 {[%emt 0:00:10]} Ne7 {[%emt 0:00:18]} 13. Bh3 {[%emt 0:04:19]} Ng6 {[%emt 0:00:20]} 14. O-O {[%emt 0:01:35]} Be7 {[%emt 0:00:40]} 15. f4 {[%emt 0:03:36]} O-O {[%emt 0:00:37]} 16. Qd3 {[%emt 0:03:15]} Rc8 {[%emt 0:00:54]} 17. f5 {[%emt 0:03:21]} exf5 {[%emt 0:02:12]} 18. Qxd5+ {[%emt 0:01:52]} Kh8 {[%emt 0:00:08]} 19. e6 {[%emt 0:01:31]} Bc6 {[%emt 0:00:52]} 20. Qxd8 {[%emt 0:00:29]} Bxd8 {[%emt 0:10:37]} 21. Rxf5 {[%emt 0:01:57]} Bb6+ {[%emt 0:01:05]} 22. Kf1 {[%emt 0:02:06]} Rxf5+ {[%emt 0:00:29]} 23. Bxf5 {[%emt 0:00:37]} Rf8 {[%emt 0:00:09]} 24. g4 {[%emt 0:01:11]} Ne7 {[%emt 0:00:40]} 25. Nc3 {[%emt 0:13:43]} Nxf5 {[%emt 0:02:46]} 26. gxf5 {[%emt 0:00:07]} Rxf5+ {[%emt 0:00:13]} 27. Ke1 {[%emt 0:00:33]} Re5+ {[%emt 0:07:15]} 28. Kd2 {[%emt 0:01:11]} Rxe6 {[%emt 0:00:43]} 29. Rf1 {[%emt 0:02:19]} Kg8 {[%emt 0:01:10]} 30. Ne2 {[%emt 0:02:13]} Rh6 {[%emt 0:01:46]} 31. Be5 {[%emt 0:01:32]} Re6 {[%emt 0:05:42]} 32. Bd4 {[%emt 0:06:44]} Rxe2+ {[%emt 0:25:33]} 33. Kxe2 {[%emt 0:01:13]} Bxd4 {[%emt 0:00:08]} 34. Kd2 {[%emt 0:00:31]} Bf6 {[%emt 0:01:07]} 35. Kc2 {[%emt 0:01:50]} Kf7 {[%emt 0:01:05]} 36. Kd3 {[%emt 0:01:31]} Ke6 {[%emt 0:05:22]} 37. Re1+ {[%emt 0:00:24]} Kf5 {[%emt 0:00:07]} 38. h3 {[%emt 0:00:34]} Bd7 {[%emt 0:01:08]} 39. Ke3 {[%emt 0:01:36]} Kg6 {[%emt 0:03:57]} 40. Rh1 {[%emt 0:02:15]} Kh5 {[%emt 0:00:29]} 41. Kf4 {[%emt 0:30:18]} g5+ {[%emt 0:30:34]} 42. Kg3 {[%emt 0:00:15]} Be5+ {[%emt 0:00:20]} 43. Kf2 {[%emt 0:00:12]} Kh4 {[%emt 0:00:31]} 44. Rc1 {[%emt 0:01:00]} Kxh3 {[%emt 0:07:46]} 45. Rd1 {[%emt 0:01:33]} Bc6 {[%emt 0:00:36]} 46. Rc1 {[%emt 0:01:15]} Bd5 {[%emt 0:03:44]} 47. Rd1 {[%emt 0:02:21]} Bc4 {[%emt 0:00:33]} 48. Rd7 {[%emt 0:00:51]} h5 {[%emt 0:00:25]} 49. Ra7 {[%emt 0:00:44]} Bd4+ {[%emt 0:00:12]} 50. Kf3 {[%emt 0:00:20]} Bxa7 {[%emt 0:00:13]} 51. a4 {[%emt 0:00:07]} g4+ {[%emt 0:00:00]} 52. Kf4 {[%emt 0:00:11]} g3 {[%emt 0:00:07]} 53. axb5 {[%emt 0:00:12]} axb5 {[%emt 0:00:08]} 54. Kg5 {[%emt 0:00:19]} g2 {[%emt 0:00:11]} 55. Kh6 {[%emt 0:00:08]} g1=Q {[%emt 0:00:42]} 56. Kh7 {[%emt 0:00:12]} Bd3+ {[%emt 0:00:12]} 57. Kh8 {[%emt 0:00:13]} Bd4# {[%emt 0:00:07] normal} 0-1

[Event "-chT Youth Countries 2019"]
[Site "Wuerzburg"]
[Date "2019.10.04"]
[Round "5.8"]
[White "Wiesner, Paula"]
[Black "Sereda, Yaroslava"]
[Result "1/2-1/2"]
[ECO "D86"]
[WhiteElo "1958"]
[BlackElo "1687"]
[Annotator "NA"]
[PlyCount "106"]
[EventDate "2019.10.02"]
[EventType "team-tourn"]
[EventRounds "7"]
[EventCountry "GER"]
[SourceTitle "playchess.com"]
[Source "ChessBase"]
[SourceQuality "1"]
[WhiteTeam "Berlin"]
[BlackTeam "Nordrhein-Westfalen"]
[TimeControl "40/5400+30:1800+30"]

1. d4 {[%emt 0:00:00]} Nf6 {[%emt 0:00:00]} 2. c4 {[%emt 0:00:00]} g6 {[%emt 0:00:00]} 3. Nc3 {[%emt 0:00:00]} d5 {[%emt 0:00:00]} 4. cxd5 {[%emt 0:00:08]} Nxd5 {[%emt 0:00:00]} 5. e4 {[%emt 0:00:09]} Nxc3 {[%emt 0:00:13]} 6. bxc3 {[%emt 0:00:04]} Bg7 {[%emt 0:00:12]} 7. Bc4 {[%emt 0:00:05]} c5 {[%emt 0:00:16]} 8. Ne2 {[%emt 0:00:12]} O-O {[%emt 0:00:26]} 9. O-O {[%emt 0:00:39]} Nc6 {[%emt 0:00:23]} 10. Be3 {[%emt 0:03:41]} Qc7 {[%emt 0:06:35]} 11. Qc2 {[%emt 0:10:39]} b6 {[%emt 0:16:17]} 12. dxc5 {[%emt 0:07:22]} Ne5 {[%emt 0:04:14]} 13. Bd5 {[%emt 0:01:36]} Rb8 {[%emt 0:01:10]} 14. cxb6 {[%emt 0:01:09]} axb6 {[%emt 0:00:31]} 15. Rfd1 {[%emt 0:06:42]} e6 {[%emt 0:03:00]} 16. Bb3 {[%emt 0:00:31]} Ba6 {[%emt 0:06:17]} 17. Bd4 {[%emt 0:07:06]} Ng4 {[%emt 0:13:38]} 18. f4 {[%emt 0:06:08]} Bxd4+ {[%emt 0:04:00]} 19. Rxd4 {[%emt 0:01:58]} Bxe2 {[%emt 0:08:02]} 20. Qxe2 {[%emt 0:00:08]} Qxf4 {[%emt 0:08:00]} 21. g3 {[%emt 0:01:25]} Qg5 {[%emt 0:01:55]} 22. Qd2 {[%emt 0:04:33]} Qxd2 {[%emt 0:03:57]} 23. Rxd2 {[%emt 0:00:05]} Ne5 {[%emt 0:00:52]} 24. Rd6 {[%emt 0:01:27]} Rfc8 {[%emt 0:01:01]} 25. Rc1 {[%emt 0:02:17]} b5 {[%emt 0:02:36]} 26. a4 {[%emt 0:02:49]} bxa4 {[%emt 0:00:57]} 27. Bxa4 {[%emt 0:00:09]} Rc5 {[%emt 0:00:41]} 28. Ra6 {[%emt 0:04:59]} Rbc8 {[%emt 0:04:04]} 29. Kg2 {[%emt 0:02:10]} Rxc3 {[%emt 0:01:31]} 30. Rxc3 {[%emt 0:00:05]} Rxc3 {[%emt 0:00:12]} 31. Ra5 {[%emt 0:00:23]} Ra3 {[%emt 0:06:11]} 32. Rxe5 {[%emt 0:00:59]} Rxa4 {[%emt 0:00:06]} 33. Kf3 {[%emt 0:01:37]} Kg7 {[%emt 0:02:40]} 34. Kf4 {[%emt 0:02:30]} Kf6 {[%emt 0:01:58]} 35. Rb5 {[%emt 0:00:30]} h6 {[%emt 0:01:39]} 36. h4 {[%emt 0:03:17]} g5+ {[%emt 0:02:18]} 37. hxg5+ {[%emt 0:00:10]} hxg5+ {[%emt 0:00:12]} 38. Kf3 {[%emt 0:01:07]} Kg6 {[%emt 0:01:09]} 39. Rb6 {[%emt 0:03:58]} Kh5 {[%emt 0:01:07]} 40. Rb7 {[%emt 0:02:18]} Ra3+ {[%emt 0:00:34]} 41. Kf2 {[%emt 0:31:51]} f5 {[%emt 0:10:35]} 42. exf5 {[%emt 0:00:00]} exf5 {[%emt 0:00:37]} 43. Rb4 {[%emt 0:00:00]} Rc3 {[%emt 0:09:17]} 44. Ra4 {[%emt 0:00:00]} g4 {[%emt 0:05:26]} 45. Ra6 {[%emt 0:00:00]} Rf3+ {[%emt 0:02:05]} 46. Kg2 {[%emt 0:00:00]} Kg5 {[%emt 0:00:43]} 47. Rb6 {[%emt 0:00:00]} Rc3 {[%emt 0:00:27]} 48. Kf2 {[%emt 0:00:00]} Rc2+ {[%emt 0:00:49]} 49. Kf1 {[%emt 0:00:00]} Rc5 {[%emt 0:00:51]} 50. Kf2 {[%emt 0:00:00]} Rc8 {[%emt 0:00:59]} 51. Re6 {[%emt 0:00:00]} Rf8 {[%emt 0:01:22]} 52. Ke3 {[%emt 0:00:00]} Rf6 {[%emt 0:01:15]} 53. Re8 {[%emt 0:00:00]} Rd6 {[%emt 0:00:27] normal} 1/2-1/2

[Event "-chT Youth Countries 2019"]
[Site "Wuerzburg"]
[Date "2019.10.04"]
[Round "5.8"]
[White "Roncea, Andrea-Alexandra"]
[Black "Reich, Elisabeth"]
[Result "1-0"]
[ECO "B52"]
[WhiteElo "1590"]
[BlackElo "1199"]
[Annotator "NA"]
[PlyCount "135"]
[EventDate "2019.10.02"]
[EventType "team-tourn"]
[EventRounds "7"]
[EventCountry "GER"]
[SourceTitle "playchess.com"]
[Source "ChessBase"]
[SourceQuality "1"]
[WhiteTeam "Niedersachsen"]
[BlackTeam "Bayern 2"]
[TimeControl "40/5400+30:1800+30"]

1. e4 {[%emt 0:00:00]} c5 {[%emt 0:00:00]} 2. Nf3 {[%emt 0:00:00]} d6 {[%emt 0:00:00]} 3. Bb5+ {[%emt 0:00:08]} Bd7 {[%emt 0:00:00]} 4. Bxd7+ {[%emt 0:00:17]} Nxd7 {[%emt 0:00:09]} 5. O-O {[%emt 0:00:12]} Ngf6 {[%emt 0:00:22]} 6. Re1 {[%emt 0:00:15]} g6 {[%emt 0:00:20]} 7. c3 {[%emt 0:00:33]} Bg7 {[%emt 0:00:47]} 8. d4 {[%emt 0:00:46]} cxd4 {[%emt 0:00:46]} 9. cxd4 {[%emt 0:00:24]} O-O {[%emt 0:00:48]} 10. Nc3 {[%emt 0:03:34]} Rc8 {[%emt 0:00:58]} 11. Bf4 {[%emt 0:06:24]} a6 {[%emt 0:03:19]} 12. Qd2 {[%emt 0:03:34]} Nb6 {[%emt 0:03:25]} 13. b3 {[%emt 0:04:52]} Qc7 {[%emt 0:01:51]} 14. Rac1 {[%emt 0:01:26]} Qd7 {[%emt 0:01:05]} 15. Bh6 Rfe8 {[%emt 0:01:38]} 16. Bxg7 {[%emt 0:08:04]} Kxg7 {[%emt 0:00:19]} 17. Qf4 {[%emt 0:02:01]} Qg4 {[%emt 0:02:39]} 18. Qd2 {[%emt 0:05:08]} e5 {[%emt 0:02:23]} 19. h3 {[%emt 0:04:24]} Qd7 {[%emt 0:02:26]} 20. d5 {[%emt 0:03:23]} Rc7 {[%emt 0:00:58]} 21. Rc2 {[%emt 0:01:15]} Rec8 {[%emt 0:00:36]} 22. Rec1 {[%emt 0:00:17]} h6 {[%emt 0:00:34]} 23. Qe3 {[%emt 0:01:03]} Na8 {[%emt 0:00:54]} 24. Qd3 {[%emt 0:08:42]} Nb6 {[%emt 0:00:49]} 25. Kf1 {[%emt 0:02:44]} Nh5 {[%emt 0:02:02]} 26. Ne2 {[%emt 0:01:47]} Rxc2 {[%emt 0:00:26]} 27. Rxc2 {[%emt 0:00:18]} Rxc2 {[%emt 0:00:18]} 28. Qxc2 {[%emt 0:00:23]} Qc8 {[%emt 0:00:19]} 29. Qxc8 {[%emt 0:04:44]} Nxc8 {[%emt 0:00:18]} 30. Ke1 {[%emt 0:00:46]} Nf4 {[%emt 0:00:13]} 31. Nxf4 {[%emt 0:00:24]} exf4 {[%emt 0:00:13]} 32. Kd2 {[%emt 0:00:20]} f5 {[%emt 0:00:23]} 33. exf5 {[%emt 0:01:29]} gxf5 {[%emt 0:00:06]} 34. Kd3 {[%emt 0:00:36]} Ne7 {[%emt 0:00:18]} 35. Kd4 {[%emt 0:00:28]} b5 {[%emt 0:00:05]} 36. Ne1 {[%emt 0:00:56]} Kf8 {[%emt 0:00:12]} 37. Nd3 {[%emt 0:00:42]} Ng6 {[%emt 0:00:09]} 38. Nb4 {[%emt 0:01:36]} a5 {[%emt 0:00:25]} 39. Nc6 {[%emt 0:00:25]} a4 {[%emt 0:00:12]} 40. b4 {[%emt 0:00:50]} Nh4 {[%emt 0:00:21]} 41. g3 {[%emt 0:31:48]} fxg3 {[%emt 0:30:17]} 42. fxg3 {[%emt 0:00:34]} Nf3+ {[%emt 0:00:52]} 43. Ke3 {[%emt 0:01:53]} Ng5 {[%emt 0:01:16]} 44. Nd4 {[%emt 0:05:06]} Nxh3 {[%emt 0:00:25]} 45. Nxf5 {[%emt 0:00:32]} Ng5 {[%emt 0:00:50]} 46. Nxd6 {[%emt 0:01:10]} Nf7 {[%emt 0:00:11]} 47. Nxf7 {[%emt 0:01:09]} Kxf7 {[%emt 0:00:07]} 48. Ke4 {[%emt 0:00:12]} Ke7 {[%emt 0:00:49]} 49. Ke5 {[%emt 0:00:03]} Kd7 {[%emt 0:00:12]} 50. d6 {[%emt 0:00:06]} Kd8 {[%emt 0:00:49]} 51. Ke6 {[%emt 0:00:20]} Ke8 {[%emt 0:00:23]} 52. d7+ {[%emt 0:00:32]} Kd8 {[%emt 0:00:07]} 53. Kd6 {[%emt 0:00:28]} h5 {[%emt 0:00:50]} 54. Kc6 {[%emt 0:00:06]} a3 {[%emt 0:00:22]} 55. Kxb5 {[%emt 0:00:20]} Kxd7 {[%emt 0:00:08]} 56. Ka4 {[%emt 0:00:23]} Ke6 {[%emt 0:01:06]} 57. b5 {[%emt 0:00:34]} Kd7 {[%emt 0:00:25]} 58. Kxa3 {[%emt 0:00:19]} Kc7 59. Kb4 Kb6 {[%emt 0:01:02]} 60. a4 {[%emt 0:00:35]} Ka7 {[%emt 0:00:28]} 61. Kc5 {[%emt 0:00:50]} Kb7 {[%emt 0:00:21]} 62. a5 {[%emt 0:00:11]} Kc7 {[%emt 0:00:09]} 63. a6 {[%emt 0:00:20]} Kb8 {[%emt 0:00:07]} 64. b6 {[%emt 0:00:17]} Ka8 {[%emt 0:00:09]} 65. Kc6 {[%emt 0:00:14]} Kb8 {[%emt 0:00:35]} 66. b7 {[%emt 0:00:32]} h4 {[%emt 0:00:24]} 67. Kb6 {[%emt 0:00:13]} hxg3 {[%emt 0:00:14]} 68. a7# {[%emt 0:00:07] normal} 1-0

[Event "-chT Youth Countries 2019"]
[Site "Wuerzburg"]
[Date "2019.10.04"]
[Round "5.8"]
[White "Visvikis, Kassandra"]
[Black "von Beckh, Frieda"]
[Result "1-0"]
[ECO "B35"]
[WhiteElo "1531"]
[BlackElo "1541"]
[Annotator "NA"]
[PlyCount "85"]
[EventDate "2019.10.02"]
[EventType "team-tourn"]
[EventRounds "7"]
[EventCountry "GER"]
[SourceTitle "playchess.com"]
[Source "ChessBase"]
[SourceQuality "1"]
[WhiteTeam "Baden 1"]
[BlackTeam "Hessen"]
[TimeControl "40/5400+30:1800+30"]

1. e4 {[%emt 0:00:00]} c5 {[%emt 0:00:00]} 2. Nf3 {[%emt 0:00:00]} Nc6 {[%emt 0:00:00]} 3. d4 {[%emt 0:00:00]} cxd4 {[%emt 0:00:02]} 4. Nxd4 {[%emt 0:00:00]} g6 {[%emt 0:00:10]} 5. Nc3 {[%emt 0:00:00]} Bg7 {[%emt 0:00:05]} 6. Be3 {[%emt 0:00:00]} Nf6 {[%emt 0:00:08]} 7. Bc4 {[%emt 0:00:23]} O-O {[%emt 0:00:08]} 8. Bb3 {[%emt 0:00:13]} d6 {[%emt 0:00:37]} 9. f3 {[%emt 0:00:14]} Bd7 {[%emt 0:00:29]} 10. Qd2 {[%emt 0:01:06]} Qc7 {[%emt 0:00:58]} 11. g4 {[%emt 0:02:22]} a6 {[%emt 0:03:18]} 12. h4 {[%emt 0:00:16]} Rad8 {[%emt 0:01:16]} 13. h5 {[%emt 0:01:33]} Kh8 {[%emt 0:00:50]} 14. hxg6 {[%emt 0:01:04]} fxg6 {[%emt 0:00:18]} 15. Qh2 {[%emt 0:00:50]} Bc8 {[%emt 0:04:08]} 16. Nd5 {[%emt 0:00:12]} Qa5+ {[%emt 0:01:12]} 17. Bd2 {[%emt 0:02:34]} Nxd4 {[%emt 0:01:05]} 18. Qh3 {[%emt 0:00:31]} Qc5 {[%emt 0:02:56]} 19. Nxf6 {[%emt 0:00:41]} Nxf3+ {[%emt 0:01:41]} 20. Kd1 {[%emt 0:00:26]} h5 {[%emt 0:02:07]} 21. Nxh5 {[%emt 0:01:45]} Ng1 {[%emt 0:02:08]} 22. Qg2 {[%emt 0:02:52]} Bxg4+ {[%emt 0:02:21]} 23. Kc1 {[%emt 0:00:52]} Bxh5 {[%emt 0:02:06]} 24. Rxg1 {[%emt 0:00:59]} Qe5 {[%emt 0:02:07]} 25. c3 {[%emt 0:01:04]} e6 {[%emt 0:02:32]} 26. Qh1 {[%emt 0:05:17]} Kg8 {[%emt 0:02:37]} 27. Bd1 {[%emt 0:03:39]} Rf2 {[%emt 0:08:25]} 28. Bxh5 {[%emt 0:09:38]} Qxh5 {[%emt 0:01:46]} 29. Qxh5 {[%emt 0:00:29]} gxh5 {[%emt 0:00:16]} 30. Kc2 {[%emt 0:01:45]} Kf7 {[%emt 0:01:03]} 31. Kd3 {[%emt 0:00:49]} Rh8 {[%emt 0:02:12]} 32. Be3 {[%emt 0:00:58]} Rxb2 {[%emt 0:01:08]} 33. Raf1+ {[%emt 0:00:25]} Kg8 {[%emt 0:00:44]} 34. Rf6 {[%emt 0:02:18]} Rxa2 {[%emt 0:04:20]} 35. Bh6 {[%emt 0:00:38]} Rh7 {[%emt 0:01:45]} 36. Rfg6 {[%emt 0:00:10]} Rf2 {[%emt 0:02:28]} 37. Bxg7 {[%emt 0:00:28]} Kf7 {[%emt 0:00:44]} 38. Bd4 {[%emt 0:02:10]} Rb2 {[%emt 0:01:55]} 39. Rf6+ {[%emt 0:00:38]} Ke7 {[%emt 0:01:41]} 40. Rgg6 {[%emt 0:00:27]} e5 {[%emt 0:02:16]} 41. Re6+ {[%emt 0:30:55]} Kf7 {[%emt 0:31:10]} 42. Be3 {[%emt 0:00:32]} h4 {[%emt 0:02:27]} 43. Bh6 {[%emt 0:00:24] normal} 1-0

[Event "-chT Youth Countries 2019"]
[Site "Wuerzburg"]
[Date "2019.10.04"]
[Round "5.8"]
[White "Haubold, Christian Lucas"]
[Black "Braeutigam, Katerina"]
[Result "1-0"]
[ECO "B10"]
[WhiteElo "1430"]
[BlackElo "1630"]
[Annotator "NA"]
[PlyCount "113"]
[EventDate "2019.10.02"]
[EventType "team-tourn"]
[EventRounds "7"]
[EventCountry "GER"]
[SourceTitle "playchess.com"]
[Source "ChessBase"]
[SourceQuality "1"]
[WhiteTeam "Sachsen-Anhalt"]
[BlackTeam "Schleswig-Holstein"]
[TimeControl "40/5400+30:1800+30"]

1. e4 {[%emt 0:00:00]} c6 {[%emt 0:00:00]} 2. c4 {[%emt 0:00:00]} d5 {[%emt 0:00:00]} 3. cxd5 {[%emt 0:00:00]} cxd5 {[%emt 0:00:09]} 4. exd5 {[%emt 0:00:00]} Nf6 {[%emt 0:00:54]} 5. Qa4+ {[%emt 0:00:45]} Nbd7 {[%emt 0:02:25]} 6. Nc3 {[%emt 0:00:31]} g6 {[%emt 0:01:39]} 7. Bc4 {[%emt 0:00:31]} Bg7 {[%emt 0:01:03]} 8. d3 {[%emt 0:00:17]} O-O {[%emt 0:00:40]} 9. Nf3 {[%emt 0:01:24]} a6 {[%emt 0:00:23]} 10. Qa3 {[%emt 0:00:28]} Rb8 {[%emt 0:01:29]} 11. Bf4 {[%emt 0:02:32]} Ra8 {[%emt 0:00:36]} 12. O-O {[%emt 0:00:47]} Nb6 {[%emt 0:01:04]} 13. d6 {[%emt 0:02:49]} e6 {[%emt 0:01:45]} 14. Rad1 {[%emt 0:06:23]} Nh5 {[%emt 0:06:51]} 15. Bg5 {[%emt 0:04:28]} Qd7 {[%emt 0:04:44]} 16. Be7 {[%emt 0:01:31]} Re8 {[%emt 0:00:22]} 17. Rfe1 {[%emt 0:01:34]} Rb8 {[%emt 0:08:00]} 18. Qb3 {[%emt 0:09:06]} Bf6 {[%emt 0:02:06]} 19. Qxb6 {[%emt 0:02:17]} Bxe7 {[%emt 0:01:17]} 20. dxe7 {[%emt 0:00:28]} Qxe7 {[%emt 0:01:35]} 21. Nd5 {[%emt 0:01:56]} Qf8 {[%emt 0:04:24]} 22. Nc7 {[%emt 0:03:19]} Rd8 {[%emt 0:01:23]} 23. Nxa6 {[%emt 0:00:56]} Ra8 {[%emt 0:06:01]} 24. Nc5 {[%emt 0:06:02]} Rd6 {[%emt 0:01:24]} 25. Qb4 {[%emt 0:00:29]} Rc6 {[%emt 0:01:05]} 26. d4 {[%emt 0:01:17]} b6 {[%emt 0:11:48]} 27. Qb5 {[%emt 0:00:35]} Qe8 {[%emt 0:02:11]} 28. Ne5 {[%emt 0:00:23]} bxc5 {[%emt 0:02:26]} 29. Qxc6 {[%emt 0:00:14]} Qxc6 {[%emt 0:01:28]} 30. Nxc6 {[%emt 0:00:08]} Bb7 {[%emt 0:00:09]} 31. d5 {[%emt 0:00:52]} Nf4 {[%emt 0:05:17]} 32. a3 {[%emt 0:03:00]} Kf8 {[%emt 0:01:19]} 33. g3 {[%emt 0:01:58]} Nxd5 {[%emt 0:00:56]} 34. Bxd5 {[%emt 0:00:11]} exd5 {[%emt 0:00:21]} 35. Ne5 {[%emt 0:00:29]} c4 {[%emt 0:02:13]} 36. Nd7+ {[%emt 0:01:15]} Kg7 {[%emt 0:00:36]} 37. Re7 {[%emt 0:01:52]} Bc6 {[%emt 0:05:40]} 38. Ne5 {[%emt 0:00:31]} Be8 {[%emt 0:00:26]} 39. f4 {[%emt 0:02:04]} Kf6 {[%emt 0:02:35]} 40. Rb7 {[%emt 0:01:26]} Ra5 {[%emt 0:01:43]} 41. Ng4+ {[%emt 0:30:48]} Kg7 {[%emt 0:31:23]} 42. Rb6 {[%emt 0:01:23]} Ba4 {[%emt 0:02:14]} 43. Rd2 {[%emt 0:00:31]} Bd7 {[%emt 0:00:52]} 44. Ne3 {[%emt 0:00:35]} Be6 {[%emt 0:01:14]} 45. Nd1 {[%emt 0:02:33]} Kf6 {[%emt 0:00:56]} 46. Nc3 {[%emt 0:00:13]} Kf5 {[%emt 0:01:58]} 47. Rb5 {[%emt 0:00:21]} Ra7 {[%emt 0:03:01]} 48. Nxd5 {[%emt 0:00:33]} Ke4 {[%emt 0:01:12]} 49. Nc3+ {[%emt 0:01:24]} Ke3 {[%emt 0:01:33]} 50. Rd1 {[%emt 0:00:55]} Bh3 {[%emt 0:00:57]} 51. Re5+ {[%emt 0:00:14]} Kf3 {[%emt 0:00:43]} 52. Rd2 {[%emt 0:00:11]} f6 {[%emt 0:01:14]} 53. Rf2+ {[%emt 0:02:05]} Kg4 {[%emt 0:01:56]} 54. Rd5 {[%emt 0:01:19]} Re7 {[%emt 0:01:39]} 55. Re2 {[%emt 0:00:37]} Rc7 {[%emt 0:00:59]} 56. Nd1 {[%emt 0:00:35]} Kf3 {[%emt 0:02:39]} 57. Re3+ {[%emt 0:00:08] normal} 1-0